Workbook

Sheet Anexo I - BO
A3: MUNICÍPIO DE SANTO ANTONIO DO ARACANGUÁ
A4: RELATÓRIO RESUMIDO DA EXECUÇÃO ORÇAMENTÁRIA
A5: BALANÇO ORÇAMENTÁRIO
A6: ORÇAMENTOS FISCAL E DA SEGURIDADE SOCIAL
A7: PERÍODO:- Janeiro a Outubro de 2012 - BIMESTRE:- Setembro - Outubro
A9: RREO - Anexo I (LRF, Art. 52, inciso I, alíneas "a" e "b" do inciso II e §1º) | J9: 1
B10: PREVISÃO | C10: PREVISÃO | D10: RECEITAS REALIZADAS | J10: SALDO A
A11: RECEITAS | B11: INICIAL | C11: ATUALIZADA | D11: No Bimestre | F11: % | G11: Até o Bimestre | I11: % | J11: REALIZAR
C12: (a) | D12: (b) | F12: (b/a) | G12: (c) | I12: (c/a) | J12: (a-c)
A13: RECEITAS (EXCETO INTRA-ORÇAMENTÁRIAS) (I) | B13: =B14+B50 -> 31500000 | C13: =C14+C50 -> 34764371.75 | D13: =D14+D50 -> 5765210.62 | F13: =D13/C13 -> 0.1658367556 | G13: =G14+G50 -> 27763769.47 | I13: =G13/C13 -> 0.7986271022 | J13: =C13-G13 -> 7000602.28
A14: RECEITAS CORRENTES | B14: =B15+B19+B22+B28+B32+B36+B37+B45 -> 31450000 | C14: =C15+C19+C22+C28+C32+C36+C37+C45 -> 31974078.47 | D14: =D15+D19+D22+D28+D32+D36+D37+D45 -> 5636651.96 | F14: 0.1762881756 | G14: =G15+G19+G22+G28+G32+G36+G37+G45 -> 26197686.55 | I14: 0.8193414104 | J14: 5776391.92
A15: RECEITA TRIBUTÁRIA | B15: =B16+B17+B18 -> 2310000 | C15: =C16+C17+C18 -> 2310000 | D15: =D16+D17+D18 -> 324603.4 | F15: 0.1405209524 | G15: =G16+G17+G18 -> 1462850.72 | I15: 0.63326871 | J15: 847149.28
A16: Impostos | B16: 2225000 | C16: 2225000 | D16: 314243.23 | F16: 0.1412329124 | G16: 1383680.45 | I16: 0.6218788539 | J16: 841319.55
A17: Taxas | B17: 85000 | C17: 85000 | D17: 10360.17 | F17: 0.1218843529 | G17: 79170.27 | I17: 0.9314149412 | J17: 5829.73
A18: Contribuição de Melhoria | B18: 0 | C18: 0 | D18: 0 | G18: 0 | J18: 0
A19: RECEITA DE CONTRIBUIÇÕES | B19: =B20+B21 -> 0 | C19: =C20+C21 -> 0 | D19: =D20+D21 -> 0 | G19: =G20+G21 -> 0 | J19: 0
A20: Contribuições Sociais | B20: 0 | C20: 0 | D20: 0 | G20: 0 | J20: 0
A21: Contribuições Econômicas | B21: 0 | C21: 0 | D21: 0 | G21: 0 | J21: 0
A22: RECEITA PATRIMONIAL | B22: =B23+B24+B25+B26+B27 -> 237000 | C22: =C23+C24+C25+C26+C27 -> 237000 | D22: =D23+D24+D25+D26+D27 -> 18133.08 | F22: 0.07651088608 | G22: =G23+G24+G25+G26+G27 -> 109882.24 | I22: 0.4636381435 | J22: 127117.76
A23: Receitas Imobiliárias | B23: 0 | C23: 0 | D23: 0 | G23: 0 | J23: 0
A24: Receitas de Valores Mobiliários | B24: 227000 | C24: 227000 | D24: 17893.08 | F24: 0.07882414097 | G24: 105627.24 | I24: 0.4653182379 | J24: 121372.76
A25: Receita de Concessões e Permissões | B25: 0 | C25: 0 | D25: 0 | G25: 0 | J25: 0
A26: Compensações Financeiras | B26: 0 | C26: 0 | D26: 0 | G26: 0 | J26: 0
A27: Outras Receitas Patrimoniais | B27: 10000 | C27: 10000 | D27: 240 | F27: 0.024 | G27: 4255 | I27: 0.4255 | J27: 5745
A28: RECEITA AGROPECUÁRIA | B28: =B29+B30+B31 -> 0 | C28: =C29+C30+C31 -> 0 | D28: =D29+D30+D31 -> 0 | G28: =G29+G30+G31 -> 0 | J28: 0
A29: Receita da Produção Vegetal | B29: 0 | C29: 0 | D29: 0 | G29: 0 | J29: 0
A30: Receita da Produção Animal e Derivados | B30: 0 | C30: 0 | D30: 0 | G30: 0 | J30: 0
A31: Outras Receitas Agropecuárias | B31: 0 | C31: 0 | D31: 0 | G31: 0 | J31: 0
A32: RECEITA INDUSTRIAL | B32: =B33+B34+B35 -> 0 | C32: 0 | D32: =D33+D34+D35 -> 0 | G32: =G33+G34+G35 -> 0 | J32: 0
A33: Receita da Indústria de Transformação | B33: 0 | C33: 0 | D33: 0 | G33: 0 | J33: 0
A34: Receita da Indústria de Construção | B34: 0 | C34: 0 | D34: 0 | G34: 0 | J34: 0
A35: Outras Receitas Industriais | B35: 0 | C35: 0 | D35: 0 | G35: 0 | J35: 0
A36: RECEITA DE SERVIÇOS | B36: 378000 | C36: 378000 | D36: 22385.34 | F36: 0.05922047619 | G36: 128956.34 | I36: 0.3411543386 | J36: 249043.66
A37: TRANSFERÊNCIAS CORRENTES | B37: =B38+B39+B40+B41+B42+B43+B44 -> 28043000 | C37: =C38+C39+C40+C41+C42+C43+C44 -> 28567078.47 | D37: =D38+D39+D40+D41+D42+D43+D44 -> 5212728.88 | F37: 0.182473293 | G37: =G38+G39+G40+G41+G42+G43+G44 -> 24165396.16 | I37: 0.8459176596 | J37: 4401682.31
A38: Transferências Intergovernamentais | B38: 32689000 | C38: 33213078.47 | D38: 6086415.08 | F38: 0.1832535664 | G38: 28178837.3 | I38: 0.8484259394 | J38: 5034241.17
A39: Transferências Intergovernamentais - deduções | B39: -4868000 | C39: -4868000 | D39: -933624.98 | F39: 0.1917882046 | G39: -4209475.92 | I39: 0.8647238948 | J39: -658524.08
A40: Transferências de Instituições Privadas | B40: 5000 | C40: 5000 | D40: 5145 | F40: 1.029 | G40: 5145 | I40: 1.029 | J40: -145
A41: Transferências do Exterior | B41: 0 | C41: 0 | D41: 0 | G41: 0 | J41: 0
A42: Transferências de Pessoas | B42: 0 | C42: 0 | D42: 0 | G42: 0 | J42: 0
A43: Transferências de Convênios | B43: 217000 | C43: 217000 | D43: 54793.78 | F43: 0.2525058986 | G43: 190889.78 | I43: 0.8796764055 | J43: 26110.22
A44: Transferências para o Combate à Fome | B44: 0 | C44: 0 | D44: 0 | G44: 0 | J44: 0
A45: OUTRAS RECEITAS CORRENTES | B45: =B46+B47+B48+B49 -> 482000 | C45: =C46+C47+C48+C49 -> 482000 | D45: =D46+D47+D48+D49 -> 58801.26 | F45: 0.1219943154 | G45: =G46+G47+G48+G49 -> 330601.09 | I45: 0.6858943776 | J45: 151398.91
A46: Multas e Juros de Mora | B46: 128000 | C46: 128000 | D46: 7533.52 | F46: 0.058855625 | G46: 58014.98 | I46: 0.4532420313 | J46: 69985.02
A47: Indenizações e Restituições | B47: 35000 | C47: 35000 | D47: 23348.88 | F47: =D47/C47 -> 0.6671108571 | G47: 23600.34 | I47: =G47/C47 -> 0.6742954286 | J47: =C47-G47 -> 11399.66
A48: Receita da Dívida Ativa | B48: 319000 | C48: 319000 | D48: 27862.86 | F48: 0.08734438871 | G48: 248768.77 | I48: 0.7798394044 | J48: 70231.23
A49: Receitas Correntes Diversas | B49: 0 | C49: 0 | D49: 56 | G49: 217 | J49: -217
A50: RECEITAS DE CAPITAL | B50: =B51+B54+B57+B58+B66 -> 50000 | C50: =C51+C54+C57+C58+C66 -> 2790293.28 | D50: =D51+D54+D57+D58+D66 -> 128558.66 | F50: 0.04607352959 | G50: =G51+G54+G57+G58+G66 -> 1566082.92 | I50: 0.5612610442 | J50: 1224210.36
A51: OPERAÇÕES DE CRÉDITO | B51: =B52+B53 -> 0 | C51: =C52+C53 -> 0 | D51: =D52+D53 -> 0 | G51: =G52+G53 -> 0 | J51: 0
A52: Operações de Crédito Internas | B52: 0 | C52: 0 | D52: 0 | G52: 0 | J52: 0
A53: Operações de Crédito Externas | B53: 0 | C53: 0 | D53: 0 | G53: 0 | J53: 0
A54: ALIENAÇÃO DE BENS | B54: =B55+B56 -> 0 | C54: =C55+C56 -> 103000 | D54: =D55+D56 -> 0 | F54: 0 | G54: =G55+G56 -> 102730 | I54: 0.9973786408 | J54: 270
A55: Alienação de Bens Móveis | B55: 0 | C55: 103000 | D55: 0 | F55: 0 | G55: 102730 | I55: 0.9973786408 | J55: 270
A56: Alienação de Bens Imóveis | B56: 0 | C56: 0 | D56: 0 | G56: 0 | J56: 0
A57: AMORTIZAÇÕES DE EMPRÉSTIMOS | B57: 50000 | C57: 50000 | D57: 9583.98 | F57: 0.1916796 | G57: 47735.2 | I57: 0.954704 | J57: 2264.8
A58: TRANSFERÊNCIAS DE CAPITAL | B58: =B59+B60+B61+B62+B63+B64+B65 -> 0 | C58: =C59+C60+C61+C62+C63+C64+C65 -> 2637293.28 | D58: =D59+D60+D61+D62+D63+D64+D65 -> 118974.68 | F58: 0.0451124192 | G58: =G59+G60+G61+G62+G63+G64+G65 -> 1415617.72 | I58: 0.5367691681 | J58: 1221675.56
A59: Transferências Intergovernamentais | B59: 0 | C59: 0 | D59: 0 | G59: 0 | J59: 0
A60: Transferências de Instituições Privadas | B60: 0 | C60: 0 | D60: 0 | G60: 0 | J60: 0
A61: Transferências do Exterior | B61: 0 | C61: 0 | D61: 0 | G61: 0 | J61: 0
A62: Transferências de Pessoas | B62: 0 | C62: 0 | D62: 0 | G62: 0 | J62: 0
A63: Transferências de Outras Instituições Públicas | B63: 0 | C63: 0 | D63: 0 | G63: 0 | J63: 0
A64: Transferências de Convênios | B64: 0 | C64: 2637293.28 | D64: 118974.68 | F64: 0.0451124192 | G64: 1415617.72 | I64: 0.5367691681 | J64: 1221675.56
A65: Transferências para o Combate à Fome | B65: 0 | C65: 0 | D65: 0 | G65: 0 | J65: 0
A66: OUTRAS RECEITAS DE CAPITAL | B66: =B67+B68+B69 -> 0 | C66: =C67+C68+C69 -> 0 | D66: =D67+D68+D69 -> 0 | G66: =G67+G68+G69 -> 0 | J66: 0
A67: Integralização do Capital Social | B67: 0 | C67: 0 | D67: 0 | G67: 0 | J67: 0
A68: Dív. Atv. Prov. da Amortiz. de Emp. e Financ. | B68: 0 | C68: 0 | D68: 0 | G68: 0 | J68: 0
A69: Receitas de Capital Diversas | B69: 0 | C69: 0 | D69: 0 | G69: 0 | J69: 0
A70: RECEITAS (INTRA-ORÇAMENTÁRIAS) (II) | B70: 0 | C70: 0 | D70: 0 | G70: 0 | J70: 0
A71: SUBTOTAL DAS RECEITAS (III) = (I + II) | B71: =B13+B70 -> 31500000 | C71: =C13+C70 -> 34764371.75 | D71: =D13+D70 -> 5765210.62 | F71: 0.1658367556 | G71: =G13+G70 -> 27763769.47 | I71: 0.7986271022 | J71: 7000602.28
A72: OPERAÇÕES DE CRÉDITO / REFINANCIAMENTO (IV) | D72: =D73+D76 -> 0 | G72: =G73+G76 -> 0 | J72: 0
A73: Operações de Crédito Internas | B73: 0 | C73: 0 | D73: =D74+D75 -> 0 | G73: =G74+G75 -> 0 | J73: 0
A74: Mobiliária | B74: 0 | C74: 0 | D74: 0 | G74: 0 | J74: 0
A75: Contratual | B75: 0 | C75: 0 | D75: 0 | G75: 0 | J75: 0
A76: Operações de Crédito Externas | B76: 0 | C76: 0 | D76: =D77+D78 -> 0 | G76: =G77+G78 -> 0 | J76: 0
A77: Mobiliária | B77: 0 | C77: 0 | D77: 0 | G77: 0 | J77: 0
A78: Contratual | B78: 0 | C78: 0 | D78: 0 | G78: 0 | J78: 0
A79: SUBTOTAL COM REFINANCIAMENTO (V) = (III + IV) | B79: =B71+B72 -> 31500000 | C79: =C71+C72 -> 34764371.75 | D79: =D71+D72 -> 5765210.62 | F79: 0.1658367556 | G79: =G71+G72 -> 27763769.47 | I79: 0.7986271022 | J79: 7000602.28
A80: DÉFICIT (VI) | B80: 0 | C80: 0 | G80: 0 | J80: 0
A81: TOTAL (VII) = (V + VI) | B81: =B79+B80 -> 31500000 | C81: =C79+C80 -> 34764371.75 | D81: =D79+D80 -> 5765210.62 | F81: 0.1658367556 | G81: =G79+G80 -> 27763769.47 | I81: 0.7986271022 | J81: 7000602.28
A82: SALDOS DE EXERCÍCIOS ANTERIORES (UTILIZADOS PARA CRÉDITOS ADICIONAIS) | B82: 0 | C82: 0 | D82: - | F82: – | G82: - | I82: – | J82: -
A83: Superávit Financeiro | B83: 0 | C83: 1017188.16 | D83: – | F83: – | G83: - | I83: – | J83: –
A84: Reabertura de Créditos Adicionais | B84: 0 | C84: 0 | D84: – | F84: – | G84: - | I84: – | J84: –
B86: DOTAÇÃO | C86: CRÉDITOS | D86: DOTAÇÃO | E86: DESPESAS EMPENHADAS | G86: DESPESAS LIQUIDADAS | J86: SALDO A
A87: DESPESAS | B87: INICIAL | C87: ADICIONAIS | D87: ATUALIZADA | E87: No Bimestre | F87: Até o Bimestre | G87: No Bimestre | H87: Até o Bimestre | I87: % | J87: LIQUIDAR
B88: (d) | C88: (e) | D88: (f)=(d+e) | H88: (g) | I88: (g/f) | J88: (f-g)
A89: DESPESAS (EXCETO INTRA-ORÇAMENTÁRIAS) (VIII) | B89: =B90+B94+B98+B99 -> 31500000 | C89: =D89-B89 -> 4480012.45 | D89: =D90+D94+D98+D99 -> 35980012.45 | E89: =E90+E94 -> 4083168.16 | F89: =F90+F94 -> 31767182.2 | G89: =G90+G94 -> 5383274.62 | H89: =H90+H94 -> 27160469.71 | I89: =H89/D89 -> 0.7548766068 | J89: =D89-H89 -> 8819542.74
A90: DESPESAS CORRENTES | B90: =B91+B92+B93 -> 29012000 | C90: 1287600 | D90: =D91+D92+D93 -> 30299600 | E90: =E91+E92+E93 -> 3941221.68 | F90: =F91+F92+F93 -> 26989277.7 | G90: =G91+G92+G93 -> 5084279.03 | H90: =H91+H92+H93 -> 25361015.06 | I90: 0.8370082463 | J90: 4938584.94
A91: PESSOAL E ENCARGOS SOCIAIS | B91: 16748000 | C91: 50000 | D91: 16798000 | E91: 2895846.49 | F91: 14464524.86 | G91: 2895846.49 | H91: 14464524.86 | I91: 0.8610861329 | J91: 2333475.14
A92: JUROS E ENCARGOS DA DÍVIDA | B92: 0 | C92: 0 | D92: 0 | E92: 0 | F92: 0 | G92: 0 | H92: 0 | J92: 0
A93: OUTRAS DESPESAS CORRENTES | B93: 12264000 | C93: 1237600 | D93: 13501600 | E93: 1045375.19 | F93: 12524752.84 | G93: 2188432.54 | H93: 10896490.2 | I93: 0.8070517716 | J93: 2605109.8
A94: DESPESAS DE CAPITAL | B94: =B95+B96+B97 -> 2338000 | C94: 3342412.45 | D94: =D95+D96+D97 -> 5680412.45 | E94: =E95+E96+E97 -> 141946.48 | F94: =F95+F96+F97 -> 4777904.5 | G94: =G95+G96+G97 -> 298995.59 | H94: =H95+H96+H97 -> 1799454.65 | I94: 0.3167823932 | J94: 3880957.8
A95: INVESTIMENTOS | B95: 2078000 | C95: 3477912.45 | D95: 5555912.45 | E95: 119200.07 | F95: 4670650.44 | G95: 285249.18 | H95: 1701200.59 | I95: 0.3061964358 | J95: 3854711.86
A96: INVERSÕES FINANCEIRAS | B96: 10000 | C96: 0 | D96: 10000 | E96: 9000 | F96: 9000 | G96: 0 | H96: 0 | I96: 0 | J96: 10000
A97: AMORTIZAÇÃO DA DÍVIDA | B97: 250000 | C97: -135500 | D97: 114500 | E97: 13746.41 | F97: 98254.06 | G97: 13746.41 | H97: 98254.06 | I97: 0.8581140611 | J97: 16245.94
A98: RESERVA DE CONTINGÊNCIA | B98: 150000 | C98: -150000 | D98: 0 | E98: 0 | F98: 0 | G98: 0 | H98: 0 | J98: 0
A99: RESERVA DO RPPS | B99: 0 | C99: 0 | D99: 0 | E99: 0 | F99: 0 | G99: 0 | H99: 0 | J99: 0
A100: DESPESAS (INTRA-ORÇAMENTÁRIAS) (IX) | B100: 0 | C100: 0 | D100: 0 | E100: 0 | F100: 0 | G100: 0 | H100: 0 | J100: 0
A101: SUBTOTAL DAS DESPESAS (X) = (VIII + IX) | B101: =B89+B100 -> 31500000 | C101: 4480012.45 | D101: =D89+D100 -> 35980012.45 | E101: =E89+E98+E99+E100 -> 4083168.16 | F101: =F89+F98+F99+F100 -> 31767182.2 | G101: =G89+G98+G99+G100 -> 5383274.62 | H101: =H89+H98+H99+H100 -> 27160469.71 | I101: 0.7548766068 | J101: 8819542.74
A102: AMORTIZAÇÃO DA DÍV. / REFINANCIAMENTO (XI) | D102: =D103+D106 -> 0 | E102: =E103+E106 -> 0 | F102: =F103+F106 -> 0 | G102: =G103+G106 -> 0 | H102: =H103+H106 -> 0
A103: Amortização da Dívida Interna | B103: 0 | C103: =D103-B103 -> 0 | D103: =D104+D105 -> 0 | E103: =E104+E105 -> 0 | F103: =F104+F105 -> 0 | G103: =G104+G105 -> 0 | H103: =H104+H105 -> 0 | I103: =H103/D103 ->  | J103: =D103-H103 -> 0
A104: Dívida Mobiliária | B104: 0 | C104: 0 | D104: 0 | E104: 0 | F104: 0 | G104: 0 | H104: 0 | J104: 0
A105: Outras Dívidas | B105: 0 | C105: 0 | D105: 0 | E105: 0 | F105: 0 | G105: 0 | H105: 0 | J105: 0
A106: Amortização da Dívida Externa | B106: 0 | C106: 0 | D106: =D107+D108 -> 0 | E106: =E107+E108 -> 0 | F106: =F107+F108 -> 0 | G106: =G107+G108 -> 0 | H106: =H107+H108 -> 0 | J106: 0
A107: Dívida Mobiliária | B107: 0 | C107: 0 | D107: 0 | E107: 0 | F107: 0 | G107: 0 | H107: 0 | J107: 0
A108: Outras Dívidas | B108: 0 | C108: 0 | D108: 0 | E108: 0 | F108: 0 | G108: 0 | H108: 0 | J108: 0
A109: SUBTOTAL C/ REFINANCIAMENTO (XII) = (X + XI) | B109: =B101+B102 -> 31500000 | C109: 4480012.45 | D109: =D101+D102 -> 35980012.45 | E109: =E101+E102 -> 4083168.16 | F109: =F101+F102 -> 31767182.2 | G109: =G101+G102 -> 5383274.62 | H109: =H101+H102 -> 27160469.71 | I109: 0.7548766068 | J109: 8819542.74
A110: SUPERÁVIT (XIII) | B110: – | C110: – | D110: – | E110: – | F110: – | G110: – | H110: =G81-H109 -> 603299.76 | I110: – | J110: –
A111: TOTAL (XIV) = (XII + XIII) | B111: =B109 -> 31500000 | C111: 4480012.45 | D111: =D109 -> 35980012.45 | E111: =E109 -> 4083168.16 | F111: =F109 -> 31767182.2 | G111: =SUM(G109:G110) -> 5383274.62 | H111: =SUM(H109:H110) -> 27763769.47 | I111: – | J111: =SUM(J109:J110) -> 8819542.74
A112: FONTE:
A113: Departamento de Finanças
A115: LUIZ CARLOS DOS REIS NONATO | D115: CESAR ROBERTO TOQUETON | H115: MISLENE NAGATE ALVES
A116: Prefeito Municipal | D116: Contabilista - CRC 1SP164476/O-7 | H116: Responsável pelo Controle Interno

Sheet Anexo II - Função
A3: MUNICÍPIO DE SANTO ANTONIO DO ARACANGUÁ
A4: RELATÓRIO RESUMIDO DA EXECUÇÃO ORÇAMENTÁRIA
A5: DEMONSTRATIVO DA EXECUÇÃO DAS DESPESAS POR FUNÇÃO/SUBFUNÇÃO
A6: ORÇAMENTOS FISCAL E DA SEGURIDADE SOCIAL
A7: PERÍODO:- Janeiro a Outubro de 2012 - BIMESTRE:- Setembro - Outubro
A9: RREO - Anexo II (LRF, Art. 52, inciso II, alínea "c") | J9: 1
B10: DOTAÇÃO | C10: DOTAÇÃO | D10: DESPESAS EMPENHADAS | F10: DESPESAS LIQUIDADAS | J10: SALDO A
A11: FUNÇÃO/SUBFUNÇÃO | B11: INICIAL | C11: ATUALIZADA | D11: No Bimestre | E11: Até o Bimestre | F11: No Bimestre | G11: Até o Bimestre | H11: % | I11: % | J11: LIQUIDAR
C12: (a) | G12: (b) | H12: (b/total b) | I12: (b/a) | J12: (a-b)
A13: DESPESAS (EXCETO INTRA-ORÇAMENTÁRIAS) (I) | B13: =B15+B18+B24+B30+B33+B41+B44+B53+B56+B60+B63+B67+B70+B73+B76+B79+B82+B86+B90 -> 31500000 | C13: 35980012.45 | D13: 4083168.16 | E13: 31767182.2 | F13: 5383274.42 | G13: 27160469.71 | H13: =G13/G94 -> 1 | I13: =G13/C13 -> 0.7548766068 | J13: =C13-G13 -> 8819542.74
A15: LEGISLATIVA | B15: =B16 -> 1200000 | C15: 1200000 | D15: 157217.98 | E15: 897638.01 | F15: 164225.74 | G15: 832498.4 | H15: =G15/G94 -> 0.03065110467 | I15: =G15/C15 -> 0.6937486667 | J15: =C15-G15 -> 367501.6
A16: Ação Legislativa | B16: 1200000 | C16: 1200000 | D16: 157217.98 | E16: 897638.01 | F16: 164225.74 | G16: 832498.4 | H16: =G16/G94 -> 0.03065110467 | I16: =G16/C16 -> 0.6937486667 | J16: =C16-G16 -> 367501.6
A18: ADMINISTRAÇÃO | B18: =B19+B20+B21+B22 -> 4223000 | C18: 4115160 | D18: 526896.91 | E18: 3510253.13 | F18: 641662.05 | G18: 3334517.32 | H18: =G18/G94 -> 0.122770974 | I18: =G18/C18 -> 0.8103007708 | J18: =C18-G18 -> 780642.68
A19: Planejamento e Orçamento | B19: 118000 | C19: 118000 | D19: 16657.37 | E19: 86497.75 | F19: 14346.37 | G19: 79606.75 | H19: =G19/G94 -> 0.002930978398 | I19: =G19/C19 -> 0.6746334746 | J19: =C19-G19 -> 38393.25
A20: Administração Geral | B20: 3298000 | C20: 3297960 | D20: 411720.24 | E20: 2842248.21 | F20: 520588.66 | G20: 2697857.72 | H20: =G20/G94 -> 0.09933030425 | I20: =G20/C20 -> 0.8180383389 | J20: =C20-G20 -> 600102.28
A21: Administração Financeira | B21: 694000 | C21: 592000 | D21: 82737.56 | E21: 481461.28 | F21: 90945.28 | G21: 457006.96 | H21: =G21/G94 -> 0.01682618029 | I21: =G21/C21 -> 0.7719712162 | J21: =C21-G21 -> 134993.04
A22: Comunicação Social | B22: 113000 | C22: 107200 | D22: 15781.74 | E22: 100045.89 | F22: 15781.74 | G22: 100045.89 | H22: =G22/G94 -> 0.003683511039 | I22: =G22/C22 -> 0.9332638993 | J22: =C22-G22 -> 7154.11
A24: ASSISTÊNCIA SOCIAL | B24: =B25+B26+B27+B28 -> 1599000 | C24: 1794600 | D24: 182131.04 | E24: 1670843.89 | F24: 292591.76 | G24: 1491115.47 | H24: =G24/G94 -> 0.05490020924 | I24: =G24/C24 -> 0.8308901538 | J24: =C24-G24 -> 303484.53
A25: Assistência ao Idoso | B25: 35000 | C25: 23700 | D25: 4716.4 | E25: 23147.6 | F25: 2355.6 | G25: 20786.8 | H25: =G25/G94 -> 0.0007653328614 | I25: =G25/C25 -> 0.8770801688 | J25: =C25-G25 -> 2913.2
A26: Assistência ao Portador de Deficiência | B26: 0 | C26: 0 | D26: 0 | E26: 0 | F26: 0 | G26: 0 | H26: =G26/G94 -> 0 | I26: =G26/C26 ->  | J26: =C26-G26 -> 0
A27: Assistência à Criança e ao Adolescente | B27: 140000 | C27: 138300 | D27: 33925.24 | E27: 92601.98 | F27: 15399.44 | G27: 73930.67 | H27: =G27/G94 -> 0.002721995267 | I27: =G27/C27 -> 0.5345673897 | J27: =C27-G27 -> 64369.33
A28: Assistência Comunitária | B28: 1424000 | C28: 1632600 | D28: 143489.4 | E28: 1555094.31 | F28: 274836.72 | G28: 1396398 | H28: =G28/G94 -> 0.05141288111 | I28: =G28/C28 -> 0.855321573 | J28: =C28-G28 -> 236202
A30: PREVIDÊNCIA SOCIAL | B30: =B31 -> 150000 | C30: 125000 | D30: 21610.29 | E30: 98057.11 | F30: 21610.29 | G30: 98057.11 | H30: =G30/G94 -> 0.00361028771 | I30: =G30/C30 -> 0.78445688 | J30: =C30-G30 -> 26942.89
A31: Previdência do Regime Estatutário | B31: 150000 | C31: 125000 | D31: 21610.29 | E31: 98057.11 | F31: 21610.29 | G31: 98057.11 | H31: =G31/G94 -> 0.00361028771 | I31: =G31/C31 -> 0.78445688 | J31: =C31-G31 -> 26942.89
A33: SAÚDE | B33: =B34+B35+B36+B37+B38+B39 -> 6834000 | C33: 7321920 | D33: 1048234.48 | E33: 6788068.04 | F33: 1248777.6 | G33: 6498825.87 | H33: =G33/G94 -> 0.239275165 | I33: =G33/C33 -> 0.8875849326 | J33: =C33-G33 -> 823094.13
A34: Atenção Básica | B34: 6539000 | C34: 6845050 | D34: 996709.98 | E34: 6330287.3 | F34: 1210549.91 | G34: 6172157.88 | H34: =G34/G94 -> 0.2272478328 | I34: 0.9016965369 | J34: 672892.12
A35: Assistência Hospitalar e Ambulatorial | B35: 212000 | C35: 372000 | D35: 58144.5 | E35: 358144.5 | F35: 25000 | G35: 250000 | H35: =G35/G94 -> 0.009204553628 | I35: 0.6720430108 | J35: 122000
A36: Suporte Profilático e Terapêutico | B36: 48000 | C36: 70470 | D36: -6620 | E36: 66136.24 | F36: 13227.69 | G36: 43167.99 | H36: =G36/G94 -> 0.001589368316 | I36: 0.6125725841 | J36: 27302.01
A37: Vigilância Sanitária | B37: 35000 | C37: 34400 | D37: 0 | E37: 33500 | F37: 0 | G37: 33500 | H37: =G37/G94 -> 0.001233410186 | I37: 0.9738372093 | J37: 900
A38: Vigilância Epidemiológica | B38: 0 | C38: 0 | D38: 0 | E38: 0 | F38: 0 | G38: 0 | H38: =G38/G94 -> 0 | J38: 0
A39: Alimentação e Nutrição | B39: 0 | C39: 0 | D39: 0 | E39: 0 | F39: 0 | G39: 0 | H39: =G39/G94 -> 0 | J39: 0
A41: TRABALHO | B41: =B42 -> 20000 | C41: 14000 | D41: 10238 | E41: 12364 | F41: 1238 | G41: 3364 | H41: =G41/G94 -> 0.0001238564736 | I41: =G41/C41 -> 0.2402857143 | J41: =C41-G41 -> 10636
A42: Fomento ao Trabalho | B42: 20000 | C42: 14000 | D42: 10238 | E42: 12364 | F42: 1238 | G42: 3364 | H42: =G42/G94 -> 0.0001238564736 | I42: =G42/C42 -> 0.2402857143 | J42: =C42-G42 -> 10636
A44: EDUCAÇÃO | B44: =B45+B46+B47+B48+B49+B50+B51 -> 8802000 | C44: 11571772.45 | D44: 1150275.32 | E44: 10400909.85 | F44: 1846578.73 | G44: 7532176.58 | H44: =G44/G94 -> 0.2773212931 | I44: =G44/C44 -> 0.6509094966 | J44: =C44-G44 -> 4039595.87
A45: Ensino Fundamental | B45: 5636000 | C45: 5654630 | D45: 733942.19 | E45: 4759067.64 | F45: 960199.3 | G45: 4470599.08 | H45: =G45/G94 -> 0.1645994759 | I45: 0.7906085951 | J45: 1184030.92
A46: Ensino Médio | B46: 355000 | C46: 675750 | D46: 8071.62 | E46: 654734.58 | F46: 115775.98 | G46: 347418.23 | H46: =G46/G94 -> 0.01279131892 | I46: 0.5141224269 | J46: 328331.77
A47: Ensino Profissional | B47: 46000 | C47: 40580 | D47: 2652.7 | E47: 26259.51 | F47: 2652.7 | G47: 26259.51 | H47: =G47/G94 -> 0.0009668282721 | I47: 0.6471047314 | J47: 14320.49
A48: Ensino Superior | B48: 614000 | C48: 524000 | D48: -1927.48 | E48: 513798.22 | F48: 105652.34 | G48: 372270.95 | H48: =G48/G94 -> 0.01370635169 | I48: 0.7104407443 | J48: 151729.05
A49: Educação Infantil | B49: 1571000 | C49: 3398805.88 | D49: 290208.7 | E49: 3178086.85 | F49: 538555.3 | G49: 1808805.97 | H49: =G49/G94 -> 0.06659700621 | I49: 0.5321886668 | J49: 1589999.91
A50: Educação Especial | B50: 50000 | C50: 50000 | D50: 0 | E50: 46800 | F50: 9360 | G50: 42120 | H50: =G50/G93 ->  | I50: =G50/C50 -> 0.8424 | J50: =C50-G50 -> 7880
A51: Educação Básica | B51: 530000 | C51: 1228006.57 | D51: 117327.59 | E51: 1222163.05 | F51: 114383.11 | G51: 464702.84 | H51: =G51/G94 -> 0.01710952885 | I51: 0.3784204835 | J51: 763303.73
A53: CULTURA | B53: =B54 -> 170000 | C53: 122100 | D53: 12699.88 | E53: 101862.19 | F53: 17832.82 | G53: 87610.89 | H53: =G53/G94 -> 0.003225676542 | I53: =G53/C53 -> 0.7175339066 | J53: =C53-G53 -> 34489.11
A54: Difusão Cultural | B54: 170000 | C54: 122100 | D54: 12699.88 | E54: 101862.19 | F54: 17832.82 | G54: 87610.89 | H54: =G54/G94 -> 0.003225676542 | I54: =G54/C54 -> 0.7175339066 | J54: =C54-G54 -> 34489.11
A56: URBANISMO | B56: =B57+B58 -> 3234000 | C56: 4001560 | D56: 507388.75 | E56: 3611600.5 | F56: 541067.03 | G56: 2778177.97 | H56: =G56/G94 -> 0.1022875524 | I56: =G56/C56 -> 0.6942737257 | J56: =C56-G56 -> 1223382.03
A57: Infra-Estrutura Urbana | B57: 420000 | C57: 653560 | D57: 0 | E57: 635895.18 | F57: 0 | G57: 14902.34 | H57: =G57/G94 -> 0.0005486775508 | I57: =G57/C57 -> 0.02280179326 | J57: =C57-G57 -> 638657.66
A58: Serviços Urbanos | B58: 2814000 | C58: 3348000 | D58: 507388.75 | E58: 2975705.32 | F58: 541067.03 | G58: 2763275.63 | H58: =G58/G94 -> 0.1017388749 | I58: =G58/C58 -> 0.825351144 | J58: =C58-G58 -> 584724.37
A60: HABITAÇÃO | B60: =B61 -> 0 | C60: 0 | D60: 0 | E60: 0 | F60: 0 | G60: 0 | H60: =G60/G94 -> 0 | I60: =G60/C60 ->  | J60: =C60-G60 -> 0
A61: Habitação Urbana | B61: 0 | C61: 0 | D61: 0 | E61: 0 | F61: 0 | G61: 0 | H61: =G61/G94 -> 0 | I61: =G61/C61 ->  | J61: =C61-G61 -> 0
A63: SANEAMENTO | B63: =B64+B65 -> 445000 | C63: 846100 | D63: 56257.71 | E63: 419671.73 | F63: 85128.08 | G63: 400197.02 | H63: =G63/G101 ->  | I63: =G63/C63 -> 0.4729902139 | J63: =C63-G63 -> 445902.98
A64: Serviços Urbanos | B64: 0 | C64: 393000 | D64: 0 | E64: 0 | F64: 0 | G64: 0 | H64: =G64/G101 ->  | I64: =G64/C64 -> 0 | J64: =C64-G64 -> 393000
A65: Saneamento Básico Urbano | B65: 445000 | C65: 453100 | D65: 56257.71 | E65: 419671.73 | F65: 85128.08 | G65: 400197.02 | H65: =G65/G102 ->  | I65: =G65/C65 -> 0.883242154 | J65: =C65-G65 -> 52902.98
A67: GESTÃO AMBIENTAL | B67: =B68 -> 50000 | C67: 200 | D67: 0 | E67: 0 | F67: 0 | G67: 0 | H67: =G67/G101 ->  | I67: =G67/C67 -> 0 | J67: =C67-G67 -> 200
A68: Recuperação de Áreas Degradadas | B68: 50000 | C68: 200 | D68: 0 | E68: 0 | F68: 0 | G68: 0 | H68: =G68/G101 ->  | I68: =G68/C68 -> 0 | J68: =C68-G68 -> 200
A70: AGRICULTURA | B70: =B71 -> 730000 | C70: 815200 | D70: 74864.82 | E70: 670615.06 | F70: 88794.37 | G70: 660951.5 | H70: =G70/G94 -> 0.02433505411 | I70: =G70/C70 -> 0.8107844701 | J70: =C70-G70 -> 154248.5
A71: Extensão Rural | B71: 730000 | C71: 815200 | D71: 74864.82 | E71: 670615.06 | F71: 88794.37 | G71: 660951.5 | H71: =G71/G94 -> 0.02433505411 | I71: =G71/C71 -> 0.8107844701 | J71: =C71-G71 -> 154248.5
A73: INDÚSTRIA | B73: =B74 -> 0 | C73: 0 | D73: 0 | E73: 0 | F73: 0 | G73: 0 | H73: =G73/G97 ->  | I73: =G73/C73 ->  | J73: =C73-G73 -> 0
A74: Promoção Industrial | B74: 0 | C74: 0 | D74: 0 | E74: 0 | F74: 0 | G74: 0 | H74: =G74/G97 ->  | I74: =G74/C74 ->  | J74: =C74-G74 -> 0
A76: COMÉRCIO E SERVIÇOS | B76: =B77 -> 112000 | C76: 300 | D76: 0 | E76: 0 | F76: 0 | G76: 0 | H76: =G76/G94 -> 0 | I76: =G76/C76 -> 0 | J76: =C76-G76 -> 300
A77: Turismo | B77: 112000 | C77: 300 | D77: 0 | E77: 0 | F77: 0 | G77: 0 | H77: =G77/G94 -> 0 | I77: =G77/C77 -> 0 | J77: =C77-G77 -> 300
A79: TRANSPORTE | B79: =B80 -> 2085000 | C79: 2101600 | D79: 195458.58 | E79: 2031538.77 | F79: 269245.57 | G79: 1938067.64 | H79: =G79/G94 -> 0.07135619011 | I79: =G79/C79 -> 0.9221867339 | J79: =C79-G79 -> 163532.36
A80: Transporte Rodoviário | B80: 2085000 | C80: 2101600 | D80: 195458.58 | E80: 2031538.77 | F80: 269245.57 | G80: 1938067.64 | H80: =G80/G94 -> 0.07135619011 | I80: =G80/C80 -> 0.9221867339 | J80: =C80-G80 -> 163532.36
A82: DESPORTO E LAZER | B82: =B83+B84 -> 1131000 | C82: 1521000 | D82: 88046.79 | E82: 1152198.54 | F82: 92752.79 | G82: 1148226.74 | H82: =G82/G94 -> 0.04227565842 | I82: =G82/C82 -> 0.7549156739 | J82: =C82-G82 -> 372773.26
A83: Desporto Comunitário | B83: 1131000 | C83: 1521000 | D83: 88046.79 | E83: 1152198.54 | F83: 92752.79 | G83: 1148226.74 | H83: =G83/G94 -> 0.04227565842 | I83: =G83/C83 -> 0.7549156739 | J83: =C83-G83 -> 372773.26
A84: Lazer | B84: 0 | C84: 0 | D84: 0 | E84: 0 | F84: 0 | G84: 0 | H84: =G84/G94 -> 0 | I84: =G84/C84 ->  | J84: =C84-G84 -> 0
A86: ENCARGOS ESPECIAIS | B86: =B87+B88 -> 565000 | C86: 429500 | D86: 51847.61 | E86: 401561.38 | F86: 71769.59 | G86: 356683.2 | H86: =G86/G94 -> 0.01313243857 | I86: =G86/C86 -> 0.8304614668 | J86: =C86-G86 -> 72816.8
A87: Serviço da Dívida Interna | B87: 250000 | C87: 114500 | D87: 13746.41 | E87: 98254.06 | F87: 13746.41 | G87: 98254.06 | H87: =G87/G94 -> 0.003617539058 | I87: =G87/C87 -> 0.8581140611 | J87: =C87-G87 -> 16245.94
A88: Outros Encargos Especiais | B88: 315000 | C88: 315000 | D88: 38101.2 | E88: 303307.32 | F88: 58023.18 | G88: 258429.14 | H88: =G88/G94 -> 0.009514899512 | I88: =G88/C88 -> 0.8204099683 | J88: =C88-G88 -> 56570.86
A90: RESERVA DE CONTINGÊNCIA | B90: =B91 -> 150000 | C90: 0 | D90: 0 | E90: 0 | F90: 0 | G90: 0 | H90: =G90/G94 -> 0 | I90: =G90/C90 ->  | J90: =C90-G90 -> 0
A91: Reserva de Contingência | B91: 150000 | C91: 0 | D91: 0 | E91: 0 | F91: 0 | G91: 0 | H91: =G91/G94 -> 0 | I91: =G91/C91 ->  | J91: =C91-G91 -> 0
A93: DESPESAS (INTRA-ORÇAMENTÁRIAS) (II) | B93: 0 | C93: 0 | D93: 0 | E93: 0 | F93: 0 | G93: 0 | H93: - | I93: =G93/C93 ->  | J93: =C93-G93 -> 0
A94: TOTAL (III) = (I + II) | B94: =B13+B93 -> 31500000 | C94: 35980012.45 | D94: 4083168.16 | E94: 31767182.2 | F94: 5383274.42 | G94: 27160469.71 | H94: - | I94: =G94/C94 -> 0.7548766068 | J94: =C94-G94 -> 8819542.74
A95: FONTE:
A96: Departamento de Finanças
A99: LUIZ CARLOS DOS REIS NONATO | C99: CESAR ROBERTO TOQUETON | F99: MISLENE NAGATE ALVES
A100: Prefeito Municipal | C100: Contabilista - CRC 1SP164476/O-7 | F100: Responsável pelo Controle Interno

Sheet Anexo III - RCL
A3: MUNICÍPIO DE SANTO ANTONIO DO ARACANGUÁ
A4: RELATÓRIO RESUMIDO DA EXECUÇÃO ORÇAMENTÁRIA
A5: DEMONSTRATIVO DA RECEITA CORRENTE LÍQUIDA
A6: ORÇAMENTOS FISCAL E DA SEGURIDADE SOCIAL
A7: PERÍODO:- Novembro de 2011 a Outubro de 2012 - BIMESTRE:- Setembro - Outubro
A9: RREO - Anexo III (LRF, Art. 53, inciso I) | O9: 1
B10: EVOLUÇÃO DA RECEITA REALIZADA NOS ÚLTIMOS 12 MESES | N10: TOTAL | O10: PREVISÃO
A11: ESPECIFICAÇÃO | N11: (ÚLTIMOS | O11: ATUALIZADA
B12: 2011-11-01 | C12: 2011-12-01 | D12: 2012-01-01 | E12: 2012-02-01 | F12: 2012-03-01 | G12: 2012-04-01 | H12: 2012-05-01 | I12: 2012-06-01 | J12: 2012-07-01 | K12: 2012-08-01 | L12: 2012-09-01 | M12: 2012-10-01 | N12: 12 MESES) | O12: <EXERCÍCIO>
A13: RECEITAS CORRENTES (I)
A14: Receita Tributária | B14: =B15+B16+B17+B18+B19 -> 236617.2 | C14: 218309.6 | D14: 96152.38 | E14: 65485.52 | F14: 99533.1 | G14: 66515.32 | H14: 75167.55 | I14: 127234.22 | J14: 435401.22 | K14: 172758.01 | L14: =L15+L16+L17+L18+L19 -> 166345.17 | M14: 158258.23 | N14: =SUM(B14:M14) -> 1917777.52 | O14: =O15+O16+O17+O18+O19 -> 2310000
A15: IPTU | B15: 26801.55 | C15: 33479.48 | D15: 0 | E15: 23.61 | F15: 0 | G15: 0 | H15: 0 | I15: 32149.78 | J15: 215516.63 | K15: 37927.14 | L15: 34761.71 | M15: 35792.16 | N15: 416452.06 | O15: 815000
A16: ISS | B16: 121847.37 | C16: 136736.13 | D16: 22378.62 | E16: 20885.6 | F16: 40058.42 | G16: 31384.73 | H16: 39793.07 | I16: 47235.7 | J16: 23867.59 | K16: 67332.47 | L16: 82032.65 | M16: 69550.64 | N16: 703102.99 | O16: 800000
A17: ITBI | B17: 59771.49 | C17: 12741.85 | D17: 46493.08 | E17: 18043.25 | F17: 27827.2 | G17: 688 | H17: 1117.06 | I17: 216.39 | J17: 133852.7 | K17: 31727.13 | L17: 18184.59 | M17: 12163.5 | N17: 362826.24 | O17: 300000
A18: IRRF | B18: 24716.1 | C18: 30068.16 | D18: 25319.12 | E18: 24170.72 | F18: 28287 | G18: 32572.65 | H18: 31155.4 | I18: 32797.27 | J18: 27169.17 | K18: 29447.72 | L18: 26295.47 | M18: 35462.51 | N18: 347461.29 | O18: 310000
A19: Outras Receitas Tributárias | B19: 3480.69 | C19: 5283.98 | D19: 1961.56 | E19: 2362.34 | F19: 3360.48 | G19: 1869.94 | H19: 3102.02 | I19: 14835.08 | J19: 34995.13 | K19: 6323.55 | L19: 5070.75 | M19: 5289.42 | N19: 87934.94 | O19: 85000
A20: Receita de Contribuições | B20: 0 | C20: 0 | D20: 0 | E20: 0 | F20: 0 | G20: 0 | H20: 0 | I20: 0 | J20: 0 | K20: 0 | L20: 0 | M20: 0 | N20: 0 | O20: 0
A21: Receita Patrimonial | B21: 23990.74 | C21: 11649.14 | D21: 15311.93 | E21: 15731.14 | F21: 161234.58 | G21: -132781.46 | H21: 8498.04 | I21: 7088.91 | J21: 7633.03 | K21: 9032.99 | L21: 7841.73 | M21: 10291.35 | N21: 145522.12 | O21: 237000
A22: Receita Agropecuária | B22: 0 | C22: 0 | D22: 0 | E22: 0 | F22: 0 | G22: 0 | H22: 0 | I22: 0 | J22: 0 | K22: 0 | L22: 0 | M22: 0 | N22: 0 | O22: 0
A23: Receita Industrial | B23: 0 | C23: 0 | D23: 0 | E23: 0 | F23: 0 | G23: 0 | H23: 0 | I23: 0 | J23: 0 | K23: 0 | L23: 0 | M23: 0 | N23: 0 | O23: 0
A24: Receita de Serviços | B24: 15719.82 | C24: 23762.24 | D24: 8293.36 | E24: 10729.13 | F24: 16470.81 | G24: 11666.57 | H24: 15638.48 | I24: 14443.61 | J24: 13545.84 | K24: 15783.2 | L24: 9731.96 | M24: 12653.38 | N24: 168438.4 | O24: 378000
A25: Transferências Correntes | B25: =B26+B27+B28+B29+B30+B31+B32+B33 -> 2616869.88 | C25: 3198459.91 | D25: 3184066.58 | E25: 2359394.81 | F25: 3008017.7 | G25: 2654877.27 | H25: 2787963.78 | I25: 2671059.04 | J25: 2879865.59 | K25: 2683273.45 | L25: =L26+L27+L28+L29+L30+L31+L32+L33 -> 2489433.73 | M25: 3656920.13 | N25: 34190201.87 | O25: =O26+O27+O28+O29+O30+O31+O32+O33 -> 32911000
A26: COTA-PARTE DO F.P.M. | B26: 455643.3 | C26: 766237.9 | D26: 481715.34 | E26: 582707.89 | F26: 395751.72 | G26: 498776.96 | H26: 557846.74 | I26: 476037.92 | J26: 355489.2 | K26: 392274.87 | L26: 343234.75 | M26: 364359.18 | N26: 5670075.77 | O26: 6200000
A27: COTA-PARTE DO I.C.M.S. | B27: 1525931.04 | C27: 1635534.05 | D27: 1609420.98 | E27: 1193674.99 | F27: 1482539.5 | G27: 1361032.13 | H27: 1646977.65 | I27: 1443353.19 | J27: 1751551.37 | K27: 1347247.66 | L27: 1530387.99 | M27: 1862691.69 | N27: 18390342.24 | O27: 17000000
A28: COTA-PARTE DO I.P.V.A. | B28: 13334.77 | C28: 21637.72 | D28: 146002.51 | E28: 88785.11 | F28: 91753.99 | G28: 109176.98 | H28: 13176.58 | I28: 18682.19 | J28: 16840.94 | K28: 25086.73 | L28: 26634.65 | M28: 29569.28 | N28: 600681.45 | O28: 500000
A29: COTA-PARTE DO I.T.R. | B29: 55462.85 | C29: 56881.48 | D29: 42645.42 | E29: 3198.74 | F29: 0 | G29: 279.02 | H29: 871.37 | I29: 0 | J29: 2386.19 | K29: 805.82 | L29: 8443.02 | M29: 460016.88 | N29: 630990.79 | O29: 400000
A30: TRANSFERÊNCIAS DA LC 87/1996 | B30: 8511.36 | C30: 10936.03 | D30: 8675.36 | E30: 8675.36 | F30: 8675.36 | G30: 8675.36 | H30: 8675.36 | I30: 0 | J30: 8675.36 | K30: 8675.36 | L30: 0 | M30: 17350.72 | N30: 97525.63 | O30: 120000
A31: TRANSFERÊNCIAS DA LC 61/1989 | B31: 15987.45 | C31: 33957.07 | D31: 5142.6 | E31: 14437.85 | F31: 10797.03 | G31: 11760.68 | H31: 13355.45 | I31: 11645.05 | J31: 11828.27 | K31: 12862.67 | L31: 12392.87 | M31: 13029.37 | N31: 167196.36 | O31: 120000
A32: TRANSFERÊNCIAS DO FUNDEB | B32: 334103.4 | C32: 337105.38 | D32: 526230.17 | E32: 331339.38 | F32: 386885.39 | G32: 325142.05 | H32: 382705.51 | I32: 336430.25 | J32: 390660.35 | K32: 309025.4 | L32: 345224.02 | M32: 415872.11 | N32: 4420723.41 | O32: 4000000
A33: OUTRAS TRANSFÊRENCIAS CORRENTES | B33: 207895.71 | C33: 336170.28 | D33: 364234.2 | E33: 136575.49 | F33: 631614.71 | G33: 340034.09 | H33: 164355.12 | I33: 384910.44 | J33: 342433.91 | K33: 587294.94 | L33: 223116.43 | M33: 494030.9 | N33: 4212666.22 | O33: 4571000
A34: Outras Receitas Correntes | B34: 27328.69 | C34: 38601.15 | D34: 29419.82 | E34: 24102.4 | F34: 34336.97 | G34: 19811.97 | H34: 34407.24 | I34: 46017.82 | J34: 58111.5 | K34: 25592.11 | L34: 14237.14 | M34: 44564.12 | N34: 396530.93 | O34: 482000
A35: TOTAL DAS RECEITAS | B35: =B14+B20+B21+B22+B23+B24+B25+B34 -> 2920526.33 | C35: =C14+C20+C21+C22+C23+C24+C25+C34 -> 3490782.04 | D35: 3333244.07 | E35: 2475443 | F35: 3319593.16 | G35: 2620089.67 | H35: 2921675.09 | I35: 2865843.6 | J35: 3394557.18 | K35: 2906439.76 | L35: =L14+L20+L21+L22+L23+L24+L25+L34 -> 2687589.73 | M35: 3882687.21 | N35: =N14+N20+N21+N22+N23+N24+N25+N34 -> 36818470.84 | O35: 36318000
A36: DEDUÇÕES (II)
A37: Transferências Constitucionais e Legais | B37: 0 | C37: 0 | D37: 0 | E37: 0 | F37: 0 | G37: 0 | H37: 0 | I37: 0 | J37: 0 | K37: 0 | L37: 0 | M37: 0 | N37: =SUM(B37:M37) -> 0 | O37: 0
A38: Contrib. Empregadores e Trab. para Seg. Social | B38: 0 | C38: 0 | D38: 0 | E38: 0 | F38: 0 | G38: 0 | H38: 0 | I38: 0 | J38: 0 | K38: 0 | L38: 0 | M38: 0 | N38: 0 | O38: 0
A39: Contrib. para o Plano de Previdência do Servidor | B39: 0 | C39: 0 | D39: 0 | E39: 0 | F39: 0 | G39: 0 | H39: 0 | I39: 0 | J39: 0 | K39: 0 | L39: 0 | M39: 0 | N39: 0 | O39: 0
A40: Compensação Financ. entre Regimes Previdência | B40: 0 | C40: 0 | D40: 0 | E40: 0 | F40: 0 | G40: 0 | H40: 0 | I40: 0 | J40: 0 | K40: 0 | L40: 0 | M40: 0 | N40: 0 | O40: 0
A41: Dedução de Receita para Formação do FUNDEB | B41: 334103.4 | C41: 337105.38 | D41: 463110.99 | E41: 331339.38 | F41: 450004.57 | G41: 325142.05 | H41: 382705.51 | I41: 336430.25 | J41: 390660.35 | K41: 309025.4 | L41: 345224.02 | M41: 415872.11 | N41: 4420723.41 | O41: 4000000
A42: Contribuições para PIS/PASEP | B42: 0 | C42: 0 | D42: 0 | E42: 0 | F42: 0 | G42: 0 | H42: 0 | I42: 0 | J42: 0 | K42: 0 | L42: 0 | M42: 0 | N42: 0 | O42: 0
A43: Outras | B43: 0 | C43: 0 | D43: 0 | E43: 0 | F43: 0 | G43: 0 | H43: 0 | I43: 0 | J43: 0 | K43: 0 | L43: 0 | M43: 0 | N43: 0 | O43: 0
A44: TOTAL DAS DEDUÇÕES | B44: =SUM(B37:B43) -> 334103.4 | C44: 337105.38 | D44: 463110.99 | E44: 331339.38 | F44: 450004.57 | G44: 325142.05 | H44: 382705.51 | I44: 336430.25 | J44: =SUM(J37:J43) -> 390660.35 | K44: 309025.4 | L44: =SUM(L37:L43) -> 345224.02 | M44: 415872.11 | N44: 4420723.41 | O44: 4000000
A45: RECEITA CORRENTE LÍQUIDA (III) = (I - II) | B45: =B35-B44 -> 2586422.93 | C45: 3153676.66 | D45: 2870133.08 | E45: 2144103.62 | F45: 2869588.59 | G45: 2294947.62 | H45: 2538969.58 | I45: 2529413.35 | J45: 3003896.83 | K45: 2597414.36 | L45: 2342365.71 | M45: 3466815.1 | N45: =N14+N20+N21+N22+N23+N24+N25+N34-N37-N38-N39-N40-N41-N42-N43 -> 32397747.43 | O45: =O14+O20+O21+O22+O23+O24+O25+O34-O37-O38-O39-O40-O41-O42-O43 -> 32318000
A46: FONTE:
A47: Departamento de Finanças
A49: LUIZ CARLOS DOS REIS NONATO | E49: CESAR ROBERTO TOQUETON | J49: MISLENE NAGATE ALVES
A50: Prefeito Municipal | E50: Contabilista - CRC 1SP164476/O-7 | J50: Responsável pelo Controle Interno

Sheet Anexo V - RPPS
A3: MUNICÍPIO DE SANTO ANTONIO DO ARACANGUÁ
A4: RELATÓRIO RESUMIDO DA EXECUÇÃO ORÇAMENTÁRIA
A5: DEMONSTRATIVO DAS RECEITAS E DESPESAS PREVIDENCIÁRIAS DO REGIME PRÓPRIO DE PREVIDÊNCIA DOS SERVIDORES
A6: ORÇAMENTO DA SEGURIDADE SOCIAL
A7: PERÍODO:- Janeiro a Outubro de 2012 - BIMESTRE:- Setembro - Outubro
A9: RREO - Anexo V (LRF, Art. 53, inciso II) | H9: 1
B10: PREVISÃO | C10: PREVISÃO | D10: RECEITAS REALIZADAS
A11: RECEITAS | B11: INICIAL | C11: ATUALIZADA | D11: No Bimestre | F11: Até o Bimestre/ | H11: Até o Bimestre/
F12: 2012 | H12: 2011
A13: RECEITAS PREVIDENCIÁRIAS - RPPS (EXCETO INTRA-ORÇAMENTÁRIAS) (I)
A14: RECEITAS CORRENTES | B14: 0 | C14: 0 | D14: 0 | F14: 0 | H14: 0
A15: Receita de Contribuições dos Segurados | B15: 0 | C15: 0 | D15: 0 | F15: 0 | H15: 0
A16: Pessoal Civil | B16: 0 | C16: 0 | D16: 0 | F16: 0 | H16: 0
A17: Ativo | B17: 0 | C17: 0 | D17: 0 | F17: 0 | H17: 0
A18: Inativo | B18: 0 | C18: 0 | D18: 0 | F18: 0 | H18: 0
A19: Pensionista | B19: 0 | C19: 0 | D19: 0 | F19: 0 | H19: 0
A20: Pessoal Militar | B20: 0 | C20: 0 | D20: 0 | F20: 0 | H20: 0
A21: Ativo | B21: 0 | C21: 0 | D21: 0 | F21: 0 | H21: 0
A22: Inativo | B22: 0 | C22: 0 | D22: 0 | F22: 0 | H22: 0
A23: Militar | B23: 0 | C23: 0 | D23: 0 | F23: 0 | H23: 0
A24: Outras Receitas de Contribuições | B24: 0 | C24: 0 | D24: 0 | F24: 0 | H24: 0
A25: Receita Patrimonial | B25: N A D A A D E C L A R A R
A26: Receitas Imobiliárias
A27: Receitas de Valores Mobiliários
A28: Outras Receitas Patrimoniais
A29: Receita de Serviços
A30: Outras Receitas Correntes | B30: 0 | C30: 0 | D30: 0 | F30: 0 | H30: 0
A31: Compensação Previdenciária do RGPS para o RPPS | B31: 0 | C31: 0 | D31: 0 | F31: 0 | H31: 0
A32: Demais Receitas Correntes | B32: 0 | C32: 0 | D32: 0 | F32: 0 | H32: 0
A33: RECEITAS DE CAPITAL | B33: 0 | C33: 0 | D33: 0 | F33: 0 | H33: 0
A34: Alienação de Bens, Direitos e Ativos | B34: 0 | C34: 0 | D34: 0 | F34: 0 | H34: 0
A35: Amortização de Empréstimos | B35: 0 | C35: 0 | D35: 0 | F35: 0 | H35: 0
A36: Outras Receitas de Capital | B36: 0 | C36: 0 | D36: 0 | F36: 0 | H36: 0
A37: (–) DEDUÇÕES DA RECEITA | B37: 0 | C37: 0 | D37: 0 | F37: 0 | H37: 0
A38: RECEITAS PREVIDENCIÁRIAS - RPPS (INTRA-ORÇAMENTÁRIAS) (II) | B38: 0 | C38: 0 | D38: 0 | F38: 0 | H38: 0
A39: TOTAL DAS RECEITAS PREVIDENCIÁRIAS RPPS - (III) = (I + II) | B39: 0 | C39: 0 | D39: 0 | F39: 0 | H39: 0
B41: DOTAÇÃO | C41: DOTAÇÃO | D41: DESPESAS LIQUIDADAS
A42: DESPESAS | B42: INICIAL | C42: ATUALIZADA | D42: No Bimestre | F42: Até o Bimestre/ | H42: Até o Bimestre/
F43: 2012 | H43: 2011
A44: DESPESAS PREVIDENCIÁRIAS - RPPS (EXCETO INTRA-ORÇAMENTÁRIAS) (IV) | B44: =B45+B48+B60 -> 0 | C44: =C45+C48+C60 -> 0 | D44: =D45+D48+D60 -> 0 | F44: =F45+F48+F60 -> 0 | H44: =H45+H48+H60 -> 0
A45: ADMINISTRAÇÃO | B45: 0 | C45: 0 | D45: =D46+D47 -> 0 | F45: =F46+F47 -> 0 | H45: =H46+H47 -> 0
A46: Despesas Correntes | B46: 0 | C46: 0 | D46: 0 | F46: 0 | H46: 0
A47: Despesas de Capital | B47: 0 | C47: 0 | D47: 0 | F47: 0 | H47: 0
A48: PREVIDÊNCIA | B48: =B49+B53+B57 -> 0 | C48: =C49+C53+C57 -> 0 | D48: =D49+D53+D57 -> 0 | F48: =F49+F53+F57 -> 0 | H48: =H49+H53+H57 -> 0
A49: Pessoal Civil | B49: =B50+B51+B52 -> 0 | C49: =C50+C51+C52 -> 0 | D49: =D50+D51+D52 -> 0 | F49: =F50+F51+F52 -> 0 | H49: =H50+H51+H52 -> 0
A50: Aposentadorias | B50: 0 | C50: 0 | D50: 0 | F50: 0 | H50: 0
A51: Pensões | B51: 0 | C51: 0 | D51: 0 | F51: 0 | H51: 0
A52: Outros Benefícios Previdenciários | B52: 0 | C52: 0 | D52: 0 | F52: 0 | H52: 0
A53: Pessoal Militar | B53: 0 | C53: 0 | D53: 0 | F53: 0 | H53: 0
A54: Reformas | B54: 0 | C54: 0 | D54: 0 | F54: 0 | H54: 0
A55: Pensões | B55: 0 | C55: 0 | D55: 0 | F55: 0 | H55: 0
A56: Outros Benefícios Previdenciários | B56: 0 | C56: 0 | D56: 0 | F56: 0 | H56: 0
A57: Outras Despesas Previdenciárias | B57: 0 | C57: 0 | D57: 0 | F57: 0 | H57: 0
A58: Compensação Previdenciária do RPPS para o RGPS | B58: 0 | C58: 0 | D58: 0 | F58: 0 | H58: 0
A59: Demais Despesas Previdenciárias | B59: 0 | C59: 0 | D59: 0 | F59: 0 | H59: 0
A60: DESPESAS PREVIDENCIÁRIAS - RPPS (INTRA-ORÇAMENTÁRIAS) (V) | B60: 0 | C60: 0 | D60: 0 | F60: 0 | H60: 0
A61: TOTAL DAS DESPESAS PREVIDENCIÁRIAS RPPS (VI) = (IV + V) | B61: =B44+B60 -> 0 | C61: =C44+C60 -> 0 | D61: =D44+D60 -> 0 | F61: =F44+F60 -> 0 | H61: =H44+H60 -> 0
A63: RESULTADO PREVIDENCIÁRIO (VII) = (III – VI) | B63: =B39-B61 -> 0 | C63: =C39-C61 -> 0 | D63: =D39-D61 -> 0 | F63: =F39-F61 -> 0
A65: APORTES DE RECURSOS PARA O REGIME PRÓPRIO DE PREVIDÊNCIA DO SERVIDOR | B65: PREVISÃO | C65: PREVISÃO | D65: RECEITAS REALIZADAS
B66: INICIAL | C66: ATUALIZADA | D66: No | F66: Até o Bimestre/ | H66: Até o Bimestre/
D67: Bimestre | F67: <Exercício> | H67: <Exercício Anterior>
A68: TOTAL DOS APORTES PARA O RPPS
A69: Plano Financeiro
A70: Recursos para Cobertura de Insuficiências Financeiras
A71: Recursos para Formação de Reserva
A72: Outros Aportes para o RPPS
A73: Plano Previdenciário
A74: Recursos para Cobertura de Déficit Financeiro
A75: Recursos para Cobertura de Déficit Atuarial
A76: Outros Aportes para o RPPS
A78: RESERVA ORÇAMENTÁRIA DO RPPS | D78: PREVISÃO ORÇAMENTÁRIA
A79: VALOR
A81: BENS E DIREITOS DO RPPS | B81: <MÊS ANTERIOR> | D81: PERÍODO DE REFERÊNCIA
D82: 2012 | G82: 2011
A83: CAIXA | B83: 0 | D83: 0
A84: BANCOS CONTA MOVIMENTO | B84: 0 | D84: 0
A85: INVESTIMENTOS | B85: 0 | D85: 0
A86: OUTROS BENS E DIREITOS | B86: 0 | D86: 0
B88: PREVISÃO | C88: PREVISÃO | D88: RECEITAS REALIZADAS
A89: RECEITAS INTRA-ORÇAMENTÁRIAS - RPPS | B89: INICIAL | C89: ATUALIZADA | D89: No Bimestre | F89: Até o Bimestre/ | H89: Até o Bimestre/
F90: 2012 | H90: 2011
A91: RECEITAS CORRENTES (VIII) | B91: =B92 -> 0 | C91: =C92 -> 0 | D91: 0 | F91: 0 | H91: 0
A92: Receita de Contribuições | B92: =B93+B102+B105+B106 -> 0 | C92: =C93+C102+C105+C106 -> 0 | D92: 0 | F92: 0 | H92: 0
A93: Patronal | B93: =B94+B98 -> 0 | C93: =C94+C98 -> 0 | D93: =D94+D98 -> 0 | F93: =F94+F98 -> 0 | H93: =H94+H98 -> 0
A94: Pessoal Civil | B94: =B95+B96+B97 -> 0 | C94: =C95+C96+C97 -> 0 | D94: =D95+D96+D97 -> 0 | F94: =F95+F96+F97 -> 0 | H94: =H95+H96+H97 -> 0
A95: Ativo | B95: 0 | C95: 0 | D95: 0 | F95: 0 | H95: 0
A96: Inativo | B96: 0 | C96: 0 | D96: 0 | F96: 0 | H96: 0
A97: Pensionista | B97: 0 | C97: 0 | D97: 0 | F97: 0 | H97: 0
A98: Pessoal Militar | B98: 0 | C98: 0 | D98: 0 | F98: 0 | H98: 0
A99: Ativo | B99: 0 | C99: 0 | D99: 0 | F99: 0 | H99: 0
A100: Inativo | B100: 0 | C100: 0 | D100: 0 | F100: 0 | H100: 0
A101: Militar | B101: 0 | C101: 0 | D101: 0 | F101: 0 | H101: 0
A102: Para Cobertura de Déficit Atuarial | B102: 0 | C102: 0 | D102: 0 | F102: 0 | H102: 0
A103: Em Regime de Débitos e Parcelamentos | B103: 0 | C103: 0 | D103: 0 | F103: 0 | H103: 0
A104: Receita Patrimonial | B104: 0 | C104: 0 | D104: 0 | F104: 0 | H104: 0
A105: Receita de Serviços | B105: 0 | C105: 0 | D105: 0 | F105: 0 | H105: 0
A106: Outras Receitas Correntes | B106: 0 | C106: 0 | D106: 0 | F106: 0 | H106: 0
A107: RECEITAS DE CAPITAL (IX) | B107: 0 | C107: 0 | D107: 0 | F107: 0 | H107: 0
A108: Alienação de Bens | B108: 0 | C108: 0 | D108: 0 | F108: 0 | H108: 0
A109: Amortização de Empréstimos | B109: 0 | C109: 0 | D109: 0 | F109: 0 | H109: 0
A110: Outras Receitas de Capital | B110: 0 | C110: 0 | D110: 0 | F110: 0 | H110: 0
A111: DEDUÇÕES DA RECEITA (X) | B111: 0 | C111: 0 | D111: 0 | F111: 0 | H111: 0
A112: TOTAL DAS RECEITAS PREVIDENCIÁRIAS INTRA-ORÇAMENTÁRIAS (XI) = (VIII + IX - X)
B114: DOTAÇÃO | C114: DOTAÇÃO | D114: DESPESAS LIQUIDADAS
A115: DESPESAS INTRA-ORÇAMENTÁRIAS - RPPS | B115: INICIAL | C115: ATUALIZADA | D115: No Bimestre | F115: Até o Bimestre/ | H115: Até o Bimestre/
F116: 2012 | H116: 2011
A117: ADMINISTRAÇÃO (XII) | B117: =B118+B119 -> 0 | C117: =C118+C119 -> 0 | D117: 0 | F117: 0 | H117: 0
A118: Despesas Correntes | B118: 0 | C118: 0 | D118: 0 | F118: 0 | H118: 0
A119: Despesas de Capital | B119: 0 | C119: 0 | D119: 0 | F119: 0 | H119: 0
A120: TOTAL DAS DESPESAS PREVIDENCIÁRIAS INTRA-ORÇAMENTÁRIAS (XIII) = (XII) | B120: =B117 -> 0 | C120: =C117 -> 0 | D120: 0 | F120: 0 | H120: 0
A121: FONTE:
A122: Departamento de Finanças
A125: LUIZ CARLOS DOS REIS NONATO | B125: CESAR ROBERTO TOQUETON | F125: MISLENE NAGATE ALVES
A126: Prefeito Municipal | B126: Contabilista - CRC 1SP164476/O-7 | F126: Responsável pelo Controle Interno

Sheet Anexo VI - Nominal
A3: MUNICÍPIO DE SANTO ANTONIO DO ARACANGUÁ
A4: RELATÓRIO RESUMIDO DA EXECUÇÃO ORÇAMENTÁRIA
A5: DEMONSTRATIVO DO RESULTADO NOMINAL
A6: ORÇAMENTOS FISCAL E DA SEGURIDADE SOCIAL
A7: PERÍODO:- Janeiro a Outubro de 2012 - BIMESTRE:- Setembro - Outubro
A9: RREO - ANEXO VI (LRF, art 53, inciso III) | G9: 1
D10: SALDO
A11: DÍVIDA FISCAL LÍQUIDA | B11: Em 31/DEZ/2011 | D11: Em 31/AGO/2012 | F11: Em 31/OUT/2012
B12: (a) | D12: (b) | F12: (c)
A13: DÍVIDA CONSOLIDADA (I) | B13: 288426.6 | D13: 203918.95 | F13: 190172.54
A14: DEDUÇÕES (II) | B14: =B15+B16-B17 -> 2229467.3 | D14: =D15+D16-D17 -> 2504639.67 | F14: =F15+F16-F17 -> 2731541.71
A15: Disponibilidade de Caixa bruta | B15: 2307170.97 | D15: 2469544.04 | F15: 2727413.05
A16: Demais Haveres Financeiros | B16: 0 | D16: 35095.63 | F16: 24927.73
A17: (-) Restos a Pagar Processados (Exceto precatórios) | B17: 77703.67 | D17: 0 | F17: 20799.07
A18: DÍVIDA CONSOLIDADA LÍQUIDA (III) = (I - II) | B18: =B13-B14 -> -1941040.7 | D18: =D13-D14 -> -2300720.72 | F18: =F13-F14 -> -2541369.17
A19: RECEITA DE PRIVATIZAÇÕES (IV) | B19: 0 | D19: 0 | F19: 0
A20: PASSIVOS RECONHECIDOS (V) | B20: 0 | D20: =D13 -> 203918.95 | F20: =F13 -> 190172.54
A21: DÍVIDA FISCAL LÍQUIDA (VI) = (III + IV - V) | B21: =B18+B19-B20 -> -1941040.7 | D21: =D18+D19-D20 -> -2504639.67 | F21: =F18+F19-F20 -> -2731541.71
B23: PERÍODO DE REFERÊNCIA
A24: RESULTADO NOMINAL | C24: No Bimestre | F24: Até o Bimestre
C25: (c-b) | F25: (c-a)
A26: VALOR | B26: =F21-D21 -> -226902.04 | E26: =F21-B21 -> -790501.01
A28: DISCRIMINAÇÃO DA META FISCAL | E28: VALOR CORRENTE
A30: META DE RESULTADO NOMINAL FIXADA NO ANEXO DE METAS FISCAIS DA LDO P/ O EXERCÍCIO DE REFERÊNCIA
E31: 0
A32: REGIME PREVIDENCIÁRIO
D33: SALDO
A34: DÍVIDA FISCAL LÍQUIDA PREVIDENCIÁRIA | B34: Em 31/Dez/2011 | D34: Em 31/Ago/2012 | F34: Em 31/Out/2012
B35: (a) | D35: (b) | F35: (c)
A36: DÍVIDA CONSOLIDADA PREVIDENCIÁRIA (VII) | B36: NADA A DECLARAR | D36: NADA A DECLARAR | F36: NADA A DECLARAR
A37: Passivo Atuarial
A38: Demais Dívidas
A39: DEDUÇÕES (VIII)
A40: Disponibilidade de Caixa Bruta
A41: Investimentos
A42: Demais Haveres Financeiros
A43: (-) Restos a Pagar Processados
A44: DÍVIDA CONSOLIDADA LÍQUIDA PREVIDENCIÁRIA (IX) = (VII - VIII)
A45: PASSIVOS RECONHECIDOS (X)
A46: DÍVIDA FISCAL LÍQUIDA PREVIDENCIÁRIA (XI) = (IX - X)
A47: FONTE:
A48: Departamento de Finanças
A50: LUIZ CARLOS DOS REIS NONATO | B50: CESAR ROBERTO TOQUETON | E50: MISLENE NAGATE ALVES
A51: Prefeito Municipal | B51: CRC 1SP164476/O-7 | E51: Responsável pelo Controle Interno

Sheet Anexo VII - Primário (E, DF, M)
A3: MUNICÍPIO DE SANTO ANTONIO DO ARACANGUÁ
A4: RELATÓRIO RESUMIDO DA EXECUÇÃO ORÇAMENTÁRIA
A5: DEMONSTRATIVO DO RESULTADO PRIMÁRIO - ESTADOS, DISTRITO FEDERAL E MUNICÍPIOS
A6: ORÇAMENTOS FISCAL E DA SEGURIDADE SOCIAL
A7: PERÍODO:- Janeiro a Outubro de 2012 - BIMESTRE:- Setembro - Outubro
A9: RREO - ANEXO VII (LRF, art 53, inciso III) | E9: 1
B10: PREVISÃO | C10: RECEITAS REALIZADAS
A11: RECEITAS PRIMÁRIAS | B11: ATUALIZADA | C11: No Bimestre | D11: Até o Bimestre/ | E11: Até o Bimestre/
D12: 2012 | E12: 2011
A13: RECEITAS PRIMÁRIAS CORRENTES (I) | B13: =B14+B20+B23+B26+B31 -> 31223000 | C13: =C14+C20+C23+C26+C31 -> 5618758.88 | D13: =D14+D20+D23+D26+D31 -> 26092059.31 | E13: =E14+E20+E23+E26+E31 -> 24460565.17
A14: Receitas Tributárias | B14: =B15+B16+B17+B18+B19 -> 2310000 | C14: =C15+C16+C17+C18+C19 -> 324603.4 | D14: =D15+D16+D17+D18+D19 -> 1462850.72 | E14: =E15+E16+E17+E18+E19 -> 1993411.46
A15: IPTU | B15: 815000 | C15: 70553.87 | D15: 356171.03 | E15: 337288.12
A16: ISS | B16: 800000 | C16: 151583.29 | D16: 444519.49 | E16: 1133730.79
A17: ITBI | B17: 300000 | C17: 30348.09 | D17: 290312.9 | E17: 239592.64
A18: IRRF | B18: 310000 | C18: 61757.98 | D18: 292677.03 | E18: 233148.57
A19: Outras Receitas Tributárias | B19: 85000 | C19: 10360.17 | D19: 79170.27 | E19: 49651.34
A20: Receitas de Contribuições | B20: =B21+B22 -> 0 | C20: =C21+C22 -> 0 | D20: =D21+D22 -> 0 | E20: =E21+E22 -> 0
A21: Receitas Previdenciárias | B21: 0 | C21: 0 | D21: 0 | E21: 0
A22: Outras Receitas de Contribuições | B22: 0 | C22: 0 | D22: 0 | E22: 0
A23: Receita Patrimonial Líquida | B23: =B24+B25 -> 10000 | C23: =C24+C25 -> 240 | D23: =D24+D25 -> 4255 | E23: =E24+E25 -> 7598.6
A24: Receita Patrimonial | B24: 237000 | C24: 18133.08 | D24: 109882.24 | E24: 212480.06
A25: (-) Aplicações Financeiras | B25: -227000 | C25: -17893.08 | D25: -105627.24 | E25: -204881.46
A26: Transferências Correntes | B26: =B27+B28+B29+B30 -> 28043000 | C26: =C27+C28+C29+C30 -> 5212728.88 | D26: =D27+D28+D29+D30 -> 24165396.16 | E26: =E27+E28+E29+E30 -> 22004575.94
A27: FPM | B27: 4960000 | C27: 566075.21 | D27: 3558555.92 | E27: 3485497.87
A28: ICMS | B28: 13600000 | C28: 2714463.79 | D28: 12183163.16 | E28: 10968847.9
A29: Convênios | B29: 217000 | C29: 54793.78 | D29: 190889.78 | E29: 258014.7
A30: Outras Transferências Correntes | B30: 9266000 | C30: 1877396.1 | D30: 8232787.3 | E30: 7292215.47
A31: Demais Receitas Correntes | B31: =B32+B33 -> 860000 | C31: =C32+C33 -> 81186.6 | D31: =D32+D33 -> 459557.43 | E31: =E32+E33 -> 454979.17
A32: Dívida Ativa | B32: 319000 | C32: 27862.86 | D32: 248768.77 | E32: 255448.74
A33: Diversas Receitas Correntes | B33: 541000 | C33: 53323.74 | D33: 210788.66 | E33: 199530.43
A34: RECEITAS DE CAPITAL (II) | B34: =B35+B36+B37+B38+B41 -> 152730 | C34: =C35+C36+C37+C38+C41 -> 128558.66 | D34: =D35+D36+D37+D38+D41 -> 1566082.92 | E34: =E35+E36+E37+E38+E41 -> 926241.28
A35: Operações de Crédito (III) | B35: 0 | C35: 0 | D35: 0 | E35: 0
A36: Amortização de Empréstimos (IV) | B36: 50000 | C36: 9583.98 | D36: 47735.2 | E36: 33790.73
A37: Alienação de Bens (V) | B37: 102730 | C37: 0 | D37: 102730 | E37: 0
A38: Transferências de Capital | B38: =B39+B40 -> 0 | C38: =C39+C40 -> 118974.68 | D38: =D39+D40 -> 1415617.72 | E38: =E39+E40 -> 892450.55
A39: Convênios | B39: 0 | C39: 118974.68 | D39: 1415617.72 | E39: 892450.55
A40: Outras Transferências de Capital | B40: 0 | C40: 0 | D40: 0 | E40: 0
A41: Outras Receitas de Capital | B41: 0 | C41: 0 | D41: 0 | E41: 0
A42: RECEITAS PRIMÁRIAS DE CAPITAL (VI) = (II - III - IV - V) | B42: =B34-B35-B36-B37 -> 0 | C42: =C34-C35-C36-C37 -> 118974.68 | D42: =D34-D35-D36-D37 -> 1415617.72 | E42: =E34-E35-E36-E37 -> 892450.55
A43: RECEITA PRIMÁRIA TOTAL (VII) = (I + VI) | B43: =B13+B42 -> 31223000 | C43: =C13+C42 -> 5737733.56 | D43: =D13+D42 -> 27507677.03 | E43: =E13+E42 -> 25353015.72
B45: DOTAÇÃO | C45: DESPESAS LIQUIDADAS
A46: DESPESAS PRIMÁRIAS | B46: ATUALIZADA | C46: No Bimestre | D46: Até o Bimestre/ | E46: Até o Bimestre/
D47: 2012 | E47: 2011
A48: DESPESAS CORRENTES (VIII) | B48: =B49+B50+B51 -> 30299600 | C48: =C49+C50+C51 -> 5084279.03 | D48: =D49+D50+D51 -> 25361015.06 | E48: =E49+E50+E51 -> 21122891.35
A49: Pessoal e Encargos Sociais | B49: 16798000 | C49: 2895846.49 | D49: 14464524.86 | E49: 12224142.42
A50: Juros e Encargos da Dívida (IX) | B50: 0 | C50: 0 | D50: 0 | E50: 0
A51: Outras Despesas Correntes | B51: 13501600 | C51: 2188432.54 | D51: 10896490.2 | E51: 8898748.93
A52: DESPESAS PRIMÁRIAS CORRENTES (X) = (VIII - IX) | B52: =B48-B50 -> 30299600 | C52: =C48-C50 -> 5084279.03 | D52: =D48-D50 -> 25361015.06 | E52: =E48-E50 -> 21122891.35
A53: DESPESAS DE CAPITAL (XI) | B53: =B54+B55+B59 -> 5680412.45 | C53: =C54+C55+C59 -> 298995.59 | D53: =D54+D55+D59 -> 1799454.65 | E53: =E54+E55+E59 -> 1809579.87
A54: Investimentos | B54: 5555912.45 | C54: 285249.18 | D54: 1701200.59 | E54: 1628942.94
A55: Inversões Financeiras | B55: =B56+B57+B58 -> 10000 | C55: =C56+C57+C58 -> 0 | D55: =D56+D57+D58 -> 0 | E55: =E56+E57+E58 -> 7345.32
A56: Concessão de Empréstimos (XII) | B56: 0 | C56: 0 | D56: 0 | E56: 0
A57: Aquisição de Título de Capital já Integralizado (XIII) | B57: 0 | C57: 0 | D57: 0 | E57: 0
A58: Demais Inversões Financeiras | B58: 10000 | C58: 0 | D58: 0 | E58: 7345.32
A59: Amortização da Dívida (XIV) | B59: 114500 | C59: 13746.41 | D59: 98254.06 | E59: 173291.61
A60: DESPESAS PRIMÁRIAS DE CAPITAL (XV) = (XI - XII - XIII - XIV) | B60: =B53-B56-B57-B59 -> 5565912.45 | C60: =C53-C56-C57-C59 -> 285249.18 | D60: =D53-D56-D57-D59 -> 1701200.59 | E60: =E53-E56-E57-E59 -> 1636288.26
A61: RESERVA DE CONTINGÊNCIA (XVI) | B61: 0 | C61: 0 | D61: 0 | E61: 0
A62: RESERVA DO RPPS (XVII) | B62: 0 | C62: 0 | D62: 0 | E62: 0
A63: DESPESA PRIMÁRIA TOTAL (XVIII) = (X + XV + XVI + XVII) | B63: =B52+B60+B61+B62 -> 35865512.45 | C63: =C52+C60+C61+C62 -> 5369528.21 | D63: =D52+D60+D61+D62 -> 27062215.65 | E63: =E52+E60+E61+E62 -> 22759179.61
A65: RESULTADO PRIMÁRIO (XIX) = (VII - XVIII) | B65: =B43-B63 -> -4642512.45 | C65: =C43-C63 -> 368205.35 | D65: =D43-D63 -> 445461.38 | E65: =E43-E63 -> 2593836.11
A67: SALDO DE EXERCÍCIOS ANTERIORES | B67: – | C67: – | D67: 1017188.16 | E67: -
A69: DISCRIMINAÇÃO DA META FISCAL | D69: VALOR CORRENTE
A71: META DE RESULTADO PRIMÁRIO FIXADA NO ANEXO DE METAS FISCAIS DA LDO P/ O EXERCÍCIO DE REFERÊNCIA | D71: 25000
A72: FONTE: Departamento de Finanças
A75: LUIZ CARLOS DOS REIS NONATO | B75: CESAR ROBERTO TOQUETON | D75: MISLENE NAGATE ALVES
A76: Prefeito Municipal | B76: CRC 1SP164476/O-7 | D76: Responsável pelo Controle Interno

Sheet Anexo IX - RP
A3: MUNICÍPIO DE SANTO ANTONIO DO ARACANGUÁ
A4: RELATÓRIO RESUMIDO DA EXECUÇÃO ORÇAMENTÁRIA
A5: DEMONSTRATIVO DOS RESTOS A PAGAR POR PODER E ÓRGÃO
A6: ORÇAMENTOS FISCAL E DA SEGURIDADE SOCIAL
A7: PERÍODO:- Janeiro a Outubro de 2012 - BIMESTRE:- Setembro - Outubro
A9: RREO - ANEXO IX (LRF, art. 53, inciso V) | K9: 1
B10: RESTOS A PAGAR PROCESSADOS | G10: RESTOS A PAGAR NÃO PROCESSADOS
B11: Inscritos | G11: Inscritos
A12: PODER/ÓRGÃO | B12: Em | C12: Em 31 de | G12: Em | H12: Em 31 de
B13: Exercícios | C13: dezembro de | D13: Cancelados | E13: Pagos | F13: A Pagar | G13: Exercícios | H13: dezembro de | I13: Cancelados | J13: Pagos | K13: A Pagar
B14: Anteriores | C14: 2011 | G14: Anteriores | H14: 2011
A16: RESTOS A PAGAR (EXCETO INTRA-ORÇAMENTÁRIOS) (I) | B16: =B18+B22 -> 0 | C16: 77703.67 | D16: 0 | E16: 77703.67 | F16: 0 | G16: 661283.46 | H16: 504039.19 | I16: 276801.58 | J16: 668244.09 | K16: 220276.98
A18: EXECUTIVO | B18: =B19+B20 -> 0 | C18: 77257.6 | D18: 0 | E18: 77257.6 | F18: 0 | G18: 661283.46 | H18: 492981.07 | I18: 276801.58 | J18: 657185.97 | K18: 220276.98
A19: Prefeitura Municipal……………………………………………… | B19: 0 | C19: 77257.6 | D19: 0 | E19: 77257.6 | F19: =B19+C19-D19-E19 -> 0 | G19: 661283.46 | H19: 492981.07 | I19: 276801.58 | J19: 657185.97 | K19: =G19+H19-I19-J19 -> 220276.98
A22: LEGISLATIVO | B22: =B23 -> 0 | C22: 446.07 | D22: 0 | E22: 446.07 | F22: 0 | G22: 0 | H22: 11058.12 | I22: 0 | J22: 11058.12 | K22: 0
A23: Câmara Municipal………………………………………………… | B23: 0 | C23: 446.07 | D23: 0 | E23: 446.07 | F23: =B23+C23-D23-E23 -> 0 | G23: 0 | H23: 11058.12 | I23: 0 | J23: 11058.12 | K23: =G23+H23-I23-J23 -> 0
A25: RESTOS A PAGAR (INTRA-ORÇAMENTÁRIOS) (II) | B25: =B26+B27 -> 0 | C25: 0 | D25: 0 | E25: 0 | F25: 0 | G25: 0 | H25: 0 | I25: 0 | J25: 0 | K25: 0
A26: Executivo Municipal…………………………………………….. | B26: 0 | C26: 0 | D26: 0 | E26: 0 | F26: =B26+C26-D26-E26 -> 0 | G26: 0 | H26: 0 | I26: 0 | J26: 0 | K26: 0
A27: Legislativo Municipal……………………………………………. | B27: 0 | C27: 0 | D27: 0 | E27: 0 | F27: =B27+C27-D27-E27 -> 0 | G27: 0 | H27: 0 | I27: 0 | J27: 0 | K27: 0
A29: TOTAL (III) = (I + II) | B29: =B16+B25 -> 0 | C29: 77703.67 | D29: 0 | E29: 77703.67 | F29: 0 | G29: 661283.46 | H29: 504039.19 | I29: 276801.58 | J29: 668244.09 | K29: 220276.98
A30: FONTE: Departamento de Finanças
A32: LUIZ CARLOS DOS REIS NONATO | C32: CESAR ROBERTO TOQUETON | H32: MISLENE NAGATE ALVES
A33: Prefeito Municipal | C33: Contabilista - CRC 1SP164476/O-7 | H33: Responsável pelo Controle Interno
